bitfinex/quotes_SOLUSD_20250616
["timestamp","ask_amount","ask_price","bid_price","bid_amount"]
[1750088997818,8.49917144,157.3,157.26,8.49917144]
[1750088998116,8.49917144,157.3,157.25,22.25748586]
[1750088998300,8.49917144,157.3,157.26,8.49917144]
[1750088998503,8.49917144,157.3,157.25,30.7566573]
[1750089000316,8.49917144,157.29,157.25,15.89818539]
[1750089000631,27.637,157.32,157.24,6.3597049]
[1750089000632,8.49917144,157.28,157.24,6.3597049]
[1750089001515,26.0,157.29,157.24,30.75813861]
[1750089001718,8.49917144,157.28,157.24,30.75813861]
[1750089002212,8.49917144,157.28,157.24,22.25896717]
[1750089003223,26.0,157.28,157.24,6.3597049]
[1750089003393,8.49917144,157.26,157.24,6.3597049]
[1750089003593,8.49917144,157.25,157.24,6.3597049]
[1750089003795,8.49917144,157.25,157.2,24.4024242]
[1750089004218,8.49917144,157.25,157.21,6.36091851]
[1750089004427,8.49917144,157.23,157.21,6.36091851]
[1750089004604,8.49917144,157.22,157.18,6.36213258]
[1750089005114,1.81092314,157.26,157.18,6.36213258]
[1750089005115,8.49917144,157.21,157.18,6.36213258]
[1750089005422,8.49917144,157.19,157.17,57.61099384]
[1750089005597,8.49917144,157.18,157.17,6.36250312]
[1750089005919,8.49917144,157.18,157.15,6.36334712]
[1750089006143,26.0,157.2,157.15,6.36334712]
[1750089006144,8.49917144,157.17,157.15,6.36334712]
[1750089006535,8.49917144,157.18,157.15,6.36334712]
[1750089006816,13.2407598,157.19,157.15,6.36334712]
[1750089007017,8.49917144,157.19,157.15,22.27171492]
[1750089007597,26.0,157.22,157.15,30.77088636]
[1750089007801,17.98181607,157.21,157.16,8.49917144]
[1750089008117,4.74143284,157.2,157.16,8.49917144]
[1750089008322,8.49917144,157.21,157.16,8.49917144]
[1750089008518,4.74131062,157.2,157.16,8.49917144]
[1750089008698,8.49917144,157.21,157.16,8.49917144]
[1750089009228,26.0,157.22,157.17,30.76805225]
[1750089009519,8.49917144,157.25,157.2,8.49917144]
[1750089009821,8.49917144,157.21,157.17,6.36253737]
[1750089010007,8.49917144,157.2,157.17,6.36253737]
[1750089010208,8.49917144,157.19,157.17,6.36253737]
[1750089010818,8.49917144,157.18,157.15,6.36334712]
[1750089011202,8.49917144,157.18,157.14,22.27228579]
[1750089011413,8.49917144,157.17,157.14,22.27228579]
[1750089011620,8.49917144,157.17,157.14,6.36375206]
[1750089012325,8.49917144,157.16,157.14,6.36375206]
[1750089013321,4.73493626,157.18,157.13,6.36415706]
[1750089013522,44.55937738,157.19,157.14,8.49917144]
[1750089013825,44.55937738,157.19,157.15,8.49917144]
[1750089014003,44.55937738,157.19,157.13,22.27454972]
[1750089014004,44.55937738,157.19,157.14,8.49917144]
[1750089014197,8.49917144,157.18,157.13,22.27454972]
[1750089014397,8.49917144,157.18,157.13,30.77372116]
[1750089014598,8.49917144,157.16,157.13,22.27454972]
[1750089014816,8.49917144,157.15,157.13,6.36415706]
[1750089015212,8.49917144,157.15,157.11,6.36496722]
[1750089015412,8.78349458,157.16,157.11,22.27738527]
[1750089015605,8.78349458,157.16,157.11,30.77655671]
[1750089016006,8.49917144,157.16,157.11,30.77655671]
[1750089016614,4.73080165,157.17,157.11,30.77655671]
[1750089016818,8.49917144,157.16,157.11,30.77655671]
[1750089018636,44.55937738,157.19,157.14,8.49917144]
[1750089018841,10.06020594,157.19,157.16,8.49917144]
[1750089019213,10.06020594,157.19,157.15,8.49917144]
[1750089019411,10.06020594,157.19,157.16,6.36294222]
[1750089019620,10.06020594,157.19,157.16,14.86211366]
[1750089019807,10.06020594,157.19,157.16,30.76946922]
[1750089020217,10.06020594,157.19,157.17,8.49917144]
[1750089020422,10.06020594,157.19,157.16,30.76946922]
[1750089021831,10.06020594,157.19,157.18,8.49917144]
[1750089022719,10.06020594,157.19,157.16,22.27029778]
[1750089022924,10.06020594,157.19,157.17,8.49917144]
[1750089023717,10.06020594,157.19,157.18,14.86130402]
[1750089024227,10.06020594,157.19,157.17,6.36247789]
[1750089025721,10.06020594,157.19,157.17,14.86164933]
[1750089027225,10.06020594,157.19,157.16,8.49917144]
[1750089028329,10.06020594,157.19,157.17,8.49917144]
[1750089029549,10.06020594,157.19,157.18,6.36213258]
[1750089029841,10.06020594,157.19,157.18,14.86130402]
[1750089030136,10.06020594,157.19,157.18,6.36213258]
[1750089030340,10.06020594,157.19,157.18,14.86130402]
[1750089031823,10.06020594,157.19,157.13,40.92419858]
[1750089032042,10.06020594,157.19,157.18,8.49917144]
[1750089033745,10.06020594,157.19,157.18,14.86130402]
[1750089034442,1.5383,157.25,157.18,30.76663548]
[1750089034648,1.5383,157.25,157.22,8.49917144]
[1750089035233,1.5383,157.25,157.23,8.49917144]
[1750089036044,1.5383,157.25,157.23,14.85895014]
[1750089037022,1.5383,157.25,157.23,6.3597787]
[1750089037221,1.5383,157.25,157.23,14.85895014]
[1750089039654,34.78349458,157.24,157.17,6.36253737]
[1750089039843,34.49917144,157.21,157.17,6.36253737]
[1750089040028,8.49917144,157.2,157.17,6.36253737]
[1750089040228,8.49917144,157.18,157.13,14.8633285]
[1750089040438,0.28432314,157.17,157.13,14.8633285]
[1750089040635,8.49917144,157.17,157.13,6.36415706]
[1750089041246,8.49917144,157.17,157.13,14.8633285]
[1750089041247,0.28432314,157.17,157.13,14.8633285]
[1750089041428,26.28432314,157.17,157.14,8.49917144]
[1750089041741,10.60907374,157.21,157.16,8.49917144]
[1750089041941,10.60907374,157.21,157.19,8.49917144]
[1750089042348,10.60907374,157.21,157.2,6.36132315]
[1750089042750,10.60907374,157.21,157.2,14.86049459]
[1750089047457,10.60907374,157.21,157.2,6.36132315]
[1750089047646,10.60907374,157.21,157.2,14.86049459]
[1750089048160,15.3563442,157.21,157.2,14.86049459]
[1750089048345,15.3563442,157.21,157.2,6.36132315]
[1750089048545,15.3563442,157.21,157.2,8.49917144]
[1750089048752,10.60907374,157.21,157.2,8.49917144]
[1750089048950,10.60907374,157.21,157.2,16.99834288]
[1750089049149,5.24532143,157.27,157.2,16.99834288]
[1750089049331,9.49793993,157.26,157.24,8.49917144]
[1750089049534,9.49793993,157.25,157.24,8.49917144]
[1750089050844,9.49646864,157.25,157.24,8.49917144]
[1750089051361,9.49646864,157.25,157.24,14.85887634]
[1750089052864,9.49646864,157.25,157.24,8.49917144]
[1750089053041,9.49646864,157.25,157.24,14.85887634]
[1750089053548,9.49536449,157.25,157.24,14.85887634]
[1750089054343,4.74713017,157.25,157.24,14.85887634]
[1750089054748,9.49351324,157.25,157.24,14.85887634]
[1750089056381,31.10315986,157.27,157.24,14.85887634]
[1750089056665,9.49161798,157.26,157.24,14.85887634]
[1750089056841,9.49161798,157.25,157.24,14.85887634]
[1750089057051,26.0,157.27,157.24,14.85887634]
[1750089057274,26.0,157.27,157.26,8.49917144]
[1750089057478,35.4894806,157.27,157.26,8.49917144]
[1750089059080,35.4894806,157.27,157.25,14.85832085]
[1750089059250,4.74449914,157.26,157.25,14.85832085]
[1750089059953,9.49043933,157.26,157.25,14.85832085]
[1750089060344,20.1294565,157.26,157.25,8.49917144]
[1750089060552,20.1294565,157.26,157.25,14.85847191]
[1750089060753,15.38351631,157.26,157.25,8.49917144]
[1750089061267,0.28432314,157.25,157.16,44.64964886]
[1750089061574,0.28432314,157.23,157.19,8.49917144]
[1750089061750,9.49060223,157.22,157.19,8.49917144]
[1750089061951,4.74725305,157.21,157.2,8.49917144]
[1750089062254,9.49537922,157.21,157.2,8.49917144]
[1750089062563,18.28816936,157.21,157.13,6.36415706]
[1750089062767,0.28432314,157.19,157.15,8.49917144]
[1750089062959,9.50467478,157.18,157.15,8.49917144]
[1750089063155,9.50467478,157.17,157.15,14.86251269]
[1750089063374,4.75233768,157.16,157.12,6.36456211]
[1750089063676,2.37667565,157.18,157.15,8.49917144]
[1750089063973,9.50763452,157.17,157.13,8.49917144]
[1750089064171,9.50763452,157.16,157.13,8.49917144]
[1750089064374,9.50894778,157.15,157.14,8.49917144]
[1750089064581,4.75381726,157.15,157.14,8.49917144]
[1750089064757,0.28432314,157.17,157.14,8.49917144]
[1750089064951,9.50996509,157.16,157.14,14.86280557]
[1750089065269,4.75134085,157.15,157.14,14.86280557]
[1750089065447,4.75134159,157.15,157.14,14.86280557]
[1750089066199,4.75134159,157.15,157.14,8.49917144]
[1750089066680,0.28432314,157.17,157.14,8.49917144]
[1750089066852,9.49672841,157.16,157.14,14.86290322]
[1750089067055,0.28432314,157.17,157.14,14.86290322]
[1750089067266,9.49672768,157.16,157.14,14.86290322]
[1750089067469,0.28432314,157.17,157.14,14.86290322]
[1750089067774,9.49670912,157.16,157.14,14.86290322]
[1750089067949,0.28432314,157.17,157.14,14.86290322]
[1750089068270,9.49671058,157.16,157.14,14.86290322]
[1750089068574,0.28432314,157.17,157.14,14.86290322]
[1750089068775,9.49672694,157.16,157.14,14.86290322]
[1750089069073,0.28432314,157.17,157.14,14.86290322]
[1750089069372,9.4954259,157.16,157.14,14.86290322]
[1750089069576,4.74771368,157.15,157.12,8.49917144]
[1750089069870,4.74510695,157.16,157.13,8.49917144]
[1750089070069,36.42369458,157.17,157.13,8.49917144]
[1750089070268,9.49021464,157.16,157.13,8.49917144]
[1750089070468,36.42369458,157.17,157.13,14.86321236]
[1750089070665,4.74513154,157.16,157.13,14.86321236]
[1750089070862,26.0,157.16,157.15,8.49917144]
[1750089071174,30.74481265,157.16,157.14,8.49917144]
[1750089071377,26.0,157.16,157.14,8.49917144]
[1750089071875,26.0,157.14,157.09,6.36577757]
[1750089072176,9.77345628,157.13,157.09,14.86494901]
[1750089072372,4.74456657,157.12,157.09,14.86494901]
[1750089072553,0.28432314,157.13,157.09,14.86494901]
[1750089072748,0.28432314,157.13,157.09,6.36577757]
[1750089073073,5.02398541,157.13,157.09,14.86494901]
[1750089073275,5.02399466,157.13,157.09,14.86494901]
[1750089073458,5.02399466,157.13,157.09,6.36577757]
[1750089073773,26.0,157.14,157.11,8.49917144]
[1750089074150,26.0,157.14,157.12,8.49917144]
[1750089074351,26.0,157.14,157.13,8.49917144]
[1750089074663,26.0,157.14,157.12,8.49917144]
[1750089075262,26.0,157.14,157.09,22.28022151]
[1750089075585,26.0,157.14,157.12,14.86340744]
[1750089075954,26.0,157.14,157.13,8.49917144]
[1750089076257,26.0,157.16,157.13,8.49917144]
[1750089076461,5.02029794,157.15,157.11,14.86397515]
[1750089076661,8.78349458,157.15,157.11,14.86397515]
[1750089077651,12.10305513,157.15,157.11,14.86397515]
[1750089078270,3.60388369,157.15,157.12,8.49917144]
[1750089078466,30.73482223,157.15,157.13,8.49917144]
[1750089078653,26.0,157.15,157.13,8.49917144]
[1750089079352,26.0,157.15,157.13,14.8630943]
[1750089079875,26.0,157.14,157.13,14.8630943]
[1750089080080,26.0,157.15,157.13,14.8630943]
[1750089080451,26.0,157.15,157.14,8.49917144]
[1750089081576,51.92,157.15,157.14,8.49917144]
[1750089082660,51.92,157.15,157.14,14.8629235]
[1750089083259,3.31894639,157.17,157.14,14.8629235]
[1750089083466,17.77435452,157.2,157.17,6.36253737]
[1750089083771,17.77435452,157.2,157.19,8.49917144]
[1750089084283,18.05867766,157.2,157.19,8.49917144]
[1750089086188,22.79194076,157.2,157.18,8.49917144]
[1750089086361,18.05867766,157.2,157.18,8.49917144]
[1750089086559,0.28432314,157.19,157.17,8.49917144]
[1750089086981,0.28432314,157.19,157.15,6.36325097]
[1750089087150,5.01775443,157.19,157.17,8.49917144]
[1750089087355,5.01780201,157.19,157.17,8.49917144]
[1750089087586,0.28432314,157.19,157.17,8.49917144]
[1750089087977,0.28432314,157.19,157.16,14.86201947]
[1750089088177,0.28432314,157.19,157.17,8.49917144]
[1750089089370,0.28432314,157.19,157.18,8.49917144]
[1750089089700,43.69435452,157.2,157.18,8.49917144]
[1750089089854,43.97867766,157.2,157.19,8.49917144]
[1750089091183,18.05867766,157.2,157.19,8.49917144]
[1750089091588,17.77435452,157.2,157.19,14.86089928]
[1750089092808,17.77435452,157.2,157.19,8.49917144]
[1750089093611,17.77435452,157.2,157.18,8.49917144]
[1750089094179,22.50803241,157.2,157.18,8.49917144]
[1750089094377,0.28432314,157.19,157.18,8.49917144]
[1750089095400,43.69435452,157.2,157.18,14.8612817]
[1750089095581,17.77435452,157.2,157.19,8.49917144]
[1750089096595,17.77435452,157.2,157.19,14.86089928]
[1750089098585,17.77435452,157.2,157.13,22.27454972]
[1750089098777,17.77435452,157.2,157.18,8.49917144]
[1750089098778,18.05867766,157.2,157.18,8.49917144]
[1750089099401,18.05867766,157.2,157.17,8.49917144]
[1750089099582,0.28432314,157.19,157.17,8.49917144]
[1750089099792,0.28432314,157.19,157.18,8.49917144]
[1750089100384,5.0257834,157.19,157.18,8.49917144]
[1750089101705,17.77435452,157.2,157.18,14.86130402]
[1750089101908,18.05867766,157.2,157.19,8.49917144]
[1750089102201,22.80061698,157.2,157.19,8.49917144]
[1750089102407,27.54718813,157.2,157.19,8.49917144]
[1750089102604,22.80061698,157.2,157.19,8.49917144]
[1750089102905,27.54717933,157.2,157.19,8.49917144]
[1750089103106,27.54717933,157.2,157.18,8.49917144]
[1750089103401,4.74193932,157.19,157.18,8.49917144]
[1750089103903,4.74664204,157.19,157.18,8.49917144]
[1750089104307,9.49362856,157.19,157.18,8.49917144]
[1750089104512,4.74664204,157.19,157.18,8.49917144]
[1750089105007,4.74664204,157.19,157.18,14.86130402]
[1750089105381,4.74664204,157.19,157.18,8.49917144]
[1750089105583,4.74664204,157.19,157.18,14.86130402]
[1750089106187,18.05867766,157.2,157.18,14.86130402]
[1750089106387,18.05867766,157.2,157.19,8.49917144]
[1750089106607,27.26823114,157.2,157.19,8.49917144]
[1750089106805,22.52129283,157.2,157.19,8.49917144]
[1750089107500,22.52129283,157.2,157.19,14.86089928]
[1750089107699,22.52129283,157.2,157.19,8.49917144]
[1750089107896,27.26921706,157.2,157.15,6.36334712]
[1750089108100,27.26921706,157.2,157.19,8.49917144]
[1750089108101,18.05867766,157.2,157.19,8.49917144]
[1750089108313,27.55465684,157.2,157.19,8.49917144]
[1750089109210,18.05867766,157.2,157.19,8.49917144]
[1750089110326,0.28432314,157.19,157.15,6.3630569]
[1750089110488,0.28432314,157.19,157.16,8.49917144]
[1750089110489,26.16432314,157.19,157.16,8.49917144]
[1750089110812,26.16432314,157.19,157.18,8.49917144]
[1750089111191,26.16432314,157.19,157.17,8.49917144]
[1750089113010,26.16432314,157.19,157.17,14.86161179]
[1750089114290,26.16432314,157.19,157.17,8.49917144]
[1750089114994,25.88,157.19,157.18,8.49917144]
[1750089115895,25.88,157.19,157.18,14.86130402]
[1750089116097,43.65435452,157.2,157.18,14.86130402]
[1750089116302,43.93867766,157.2,157.19,8.49917144]
[1750089117111,43.93867766,157.2,157.18,8.49917144]
[1750089118387,18.05867766,157.2,157.18,14.8612116]
[1750089118616,43.93867766,157.2,157.18,14.8612116]
[1750089119108,43.93867766,157.2,157.19,8.49917144]
[1750089119911,43.93867766,157.2,157.16,6.36294222]
[1750089120111,43.93867766,157.2,157.18,8.49917144]
[1750089121419,0.28432314,157.19,157.17,8.49917144]
[1750089121616,0.28432314,157.19,157.18,8.49917144]
[1750089121796,17.77435452,157.2,157.18,8.49917144]
[1750089121997,17.77435452,157.2,157.19,14.86089928]
[1750089122207,25.9,157.23,157.19,14.86089928]
[1750089122715,4.7558551,157.24,157.19,14.86089928]
[1750089122897,30.6558551,157.24,157.19,14.86089928]
[1750089123091,25.9,157.24,157.19,14.86089928]
[1750089123401,30.80051301,157.24,157.23,8.49917144]
[1750089123615,30.94267458,157.24,157.23,8.49917144]
[1750089124111,30.94214923,157.24,157.23,8.49917144]
[1750089124317,30.94214923,157.24,157.22,8.49917144]
[1750089124519,5.04214923,157.24,157.23,8.49917144]
[1750089124830,26.16432314,157.24,157.22,8.49917144]
[1750089125031,5.04307807,157.23,157.2,8.49917144]
[1750089125600,26.16432314,157.22,157.21,8.49917144]
[1750089126012,25.88,157.22,157.21,8.49917144]
[1750089126411,25.88,157.22,157.2,6.36116357]
[1750089126728,26.16432314,157.23,157.17,6.36253737]
[1750089127025,26.16432314,157.23,157.2,8.49917144]
[1750089127206,30.92526793,157.23,157.21,8.49917144]
[1750089127535,26.16432314,157.23,157.21,8.49917144]
[1750089128226,26.16432314,157.23,157.22,8.49917144]
[1750089128408,0.28432314,157.23,157.22,8.49917144]
[1750089130324,25.88,157.24,157.22,14.85964777]
[1750089131730,25.88,157.24,157.22,8.49917144]
[1750089132138,0.28432314,157.24,157.22,14.8596429]
[1750089132431,26.16432314,157.24,157.22,14.8596429]
[1750089132636,0.28432314,157.24,157.22,14.8596429]
[1750089132933,0.28432314,157.24,157.23,8.49917144]
[1750089132934,26.16432314,157.24,157.23,8.49917144]
[1750089133133,13.95596693,157.26,157.23,8.49917144]
[1750089133313,36.51901717,157.26,157.24,8.49917144]
[1750089133510,41.27758939,157.26,157.24,8.49917144]
[1750089134133,0.28432314,157.25,157.22,6.36047146]
[1750089134337,5.04289536,157.25,157.21,8.49917144]
[1750089134635,0.28432314,157.23,157.2,8.49917144]
[1750089134812,25.88,157.22,157.2,8.49917144]
[1750089136133,0.28432314,157.21,157.2,8.49917144]
[1750089138760,25.88,157.22,157.2,14.86049459]
[1750089138917,25.88,157.22,157.21,8.49917144]
[1750089139113,0.28432314,157.23,157.21,8.49917144]
[1750089139323,26.02216157,157.23,157.22,8.49917144]
[1750089139628,26.02216157,157.23,157.21,8.49917144]
[1750089145936,26.02216157,157.23,157.21,14.8600751]
[1750089146146,4.75837767,157.24,157.22,8.49917144]
[1750089146455,26.14432314,157.24,157.2,14.86047427]
[1750089146745,30.90204974,157.24,157.2,14.86047427]
[1750089146958,37.26185515,157.24,157.2,8.49917144]
[1750089147456,26.0,157.17,157.1,40.8278115]
[1750089147661,26.0,157.17,157.12,8.49917144]
[1750089147662,26.16432314,157.16,157.12,8.49917144]
[1750089147839,26.16432314,157.16,157.13,8.49917144]
[1750089148727,26.16432314,157.16,157.13,14.8632294]
[1750089149031,1.5178,157.21,157.15,8.49917144]
[1750089149232,26.18432314,157.2,157.18,8.49917144]
[1750089149657,26.18432314,157.2,157.19,8.49917144]
[1750089150255,26.18432314,157.2,157.18,8.49917144]
[1750089150727,26.18432314,157.2,157.17,8.49917144]
[1750089152746,30.94065855,157.2,157.17,8.49917144]
[1750089152956,26.18432314,157.2,157.17,14.86162185]
[1750089153947,26.18432314,157.2,157.17,8.49917144]
[1750089154154,26.18432314,157.2,157.17,14.86165769]
[1750089155433,26.18432314,157.2,157.17,8.49917144]
[1750089156065,26.18432314,157.2,157.17,14.8616408]
[1750089157339,26.18432314,157.2,157.18,8.49917144]
[1750089160957,26.18432314,157.2,157.17,8.49917144]
[1750089161267,39.43966011,157.2,157.16,8.49917144]
[1750089161465,30.94048867,157.2,157.17,8.49917144]
[1750089162737,30.94048867,157.2,157.17,14.86164218]
[1750089162965,26.18432314,157.2,157.17,14.86164218]
[1750089164160,26.18432314,157.2,157.17,8.49917144]
[1750089164341,30.93953687,157.2,157.16,14.86193564]
[1750089165271,30.8412531,157.24,157.19,8.49917144]
[1750089165272,18.64964886,157.24,157.19,8.49917144]
[1750089165440,4.75410257,157.23,157.22,8.49917144]
[1750089165645,52.18432314,157.23,157.22,8.49917144]
[1750089165853,56.93842571,157.23,157.22,8.49917144]
[1750089166554,0.28432314,157.22,157.21,8.49917144]
[1750089167248,26.18432314,157.22,157.21,8.49917144]
[1750089167746,26.18432314,157.22,157.21,14.86008995]
[1750089168260,26.18432314,157.22,157.21,8.49917144]
[1750089168852,26.18432314,157.22,157.21,14.86008995]
[1750089169252,0.28432314,157.22,157.21,8.49917144]
[1750089169450,26.18432314,157.22,157.21,8.49917144]
[1750089171166,26.18432314,157.22,157.2,8.49917144]
[1750089172064,32.54483909,157.22,157.14,15.90937837]
[1750089172269,0.14216157,157.21,157.18,8.49917144]
[1750089172477,0.28432314,157.19,157.18,8.49917144]
[1750089173061,25.88,157.2,157.18,14.86130402]
[1750089173262,25.88,157.2,157.19,8.49917144]
[1750089173463,0.28432314,157.22,157.19,8.49917144]
[1750089173640,26.16432314,157.22,157.21,8.49917144]
[1750089176253,26.16432314,157.22,157.2,8.49917144]
[1750089176578,26.16432314,157.22,157.19,8.49917144]
[1750089177067,25.88,157.21,157.19,8.49917144]
[1750089177371,25.88,157.21,157.2,8.49917144]
[1750089178170,25.88,157.21,157.2,14.86049459]
[1750089178822,26.0,157.25,157.2,14.86049459]
[1750089178952,26.16432314,157.24,157.23,8.49917144]
[1750089180072,52.16432314,157.24,157.23,8.49917144]
[1750089180476,13.95587594,157.26,157.23,14.85928083]
[1750089180686,10.63901717,157.26,157.25,8.49917144]
[1750089180856,22.85022505,157.33,157.25,8.49917144]
[1750089181055,26.0,157.3,157.23,6.36010939]
[1750089181272,26.32648471,157.29,157.25,8.49917144]
[1750089181979,26.32648471,157.29,157.26,8.49917144]
[1750089182177,26.32648471,157.29,157.22,15.90110634]
[1750089182482,26.18432314,157.29,157.27,8.49917144]
[1750089183199,26.18432314,157.29,157.23,22.26038287]
[1750089183371,26.18432314,157.29,157.27,8.49917144]
[1750089184184,25.88,157.29,157.28,8.49917144]
[1750089184397,25.88,157.29,157.24,6.3597049]
[1750089184692,36.21672761,157.3,157.28,8.49917144]
[1750089185286,18.64964886,157.26,157.2,6.36132315]
[1750089185600,0.42648471,157.2,157.14,8.49917144]
[1750089185808,0.28432314,157.16,157.1,39.0083115]
[1750089185980,8.64133301,157.17,157.1,39.0083115]
[1750089185981,0.28432314,157.14,157.1,41.38068294]
[1750089186504,6.64808374,157.14,157.1,41.38068294]
[1750089186675,15.14733409,157.14,157.1,32.8815115]
[1750089188002,8.78349458,157.14,157.1,32.8815115]
[1750089188608,0.28432314,157.11,157.07,13.99917144]
[1750089188771,26.32432314,157.11,157.07,13.99917144]
[1750089189498,26.32432314,157.11,157.08,6.36613609]
[1750089191110,26.04,157.11,157.08,14.86530753]
[1750089195136,26.04,157.11,157.09,14.86482661]
[1750089195493,26.04,157.11,157.09,8.49917144]
[1750089195816,26.04,157.11,157.09,14.86487187]
[1750089196524,26.04,157.11,157.08,14.86528168]
[1750089197797,26.04,157.11,157.09,8.49917144]
[1750089198694,26.04,157.11,157.02,6.60610343]
[1750089198695,8.78349458,157.1,157.02,6.60610343]
[1750089198924,8.49917144,157.08,157.04,8.49917144]
[1750089199132,26.30432314,157.07,157.04,14.86658543]
[1750089201039,26.30432314,157.07,157.01,15.92175353]
[1750089201040,34.80349458,157.07,157.02,8.49917144]
[1750089201232,34.80349458,157.07,157.03,6.36820989]
[1750089201405,26.30432314,157.07,157.03,14.86738133]
[1750089202910,26.30432314,157.07,157.04,8.49917144]
[1750089203300,26.30432314,157.07,157.03,6.36820989]
[1750089203501,26.30432314,157.07,157.04,8.49917144]
[1750089203911,26.30432314,157.07,157.03,14.86738133]
[1750089205339,26.30432314,157.07,157.04,8.49917144]
[1750089205849,26.30432314,157.07,157.03,6.36820989]
[1750089206022,26.30432314,157.07,157.04,8.49917144]
[1750089206532,26.30432314,157.07,157.03,14.86738133]
[1750089206720,26.30432314,157.07,157.04,8.49917144]
[1750089208872,26.02,157.07,157.05,14.86657035]
[1750089209140,26.0,157.07,157.06,8.49917144]
[1750089209339,26.0,157.07,157.05,14.86657035]
[1750089210018,26.0,157.07,157.04,6.36765786]
[1750089210221,26.0,157.07,157.03,6.36818782]
[1750089210222,0.28432314,157.06,157.03,6.36818782]
[1750089210422,0.28432314,157.06,157.03,14.86735926]
[1750089211517,0.28432314,157.06,157.04,8.49917144]
[1750089212309,26.28432314,157.06,157.01,6.36902108]
[1750089212511,0.28432314,157.04,157.01,6.36902108]
[1750089212717,26.28432314,157.04,157.01,6.36902108]
[1750089213040,27.1488203,157.03,156.98,6.46414886]
[1750089213213,0.28432314,157.03,157.01,8.49917144]
[1750089213414,3.32171627,157.06,157.02,8.49917144]
[1750089213614,29.62603941,157.06,157.05,8.49917144]
[1750089215416,29.62603941,157.06,157.05,14.86657035]
[1750089216116,29.62603941,157.06,157.05,8.49917144]
[1750089216634,29.62603941,157.06,157.04,14.86682151]
[1750089216938,29.62603941,157.06,157.05,8.49917144]
[1750089217243,29.62603941,157.06,157.05,14.86657035]
[1750089219114,3.32171627,157.06,157.05,14.86657035]
[1750089219320,26.02,157.08,157.05,14.86657035]
[1750089219623,26.30432314,157.08,157.07,8.49917144]
[1750089220337,26.30432314,157.08,157.05,6.36739891]
[1750089220338,0.28432314,157.07,157.04,8.49917144]
[1750089220678,26.02,157.06,157.04,8.49917144]
[1750089221454,26.02,157.06,157.04,14.86688917]
[1750089221621,26.02,157.06,157.05,8.49917144]
[1750089221824,0.28432314,157.06,157.05,8.49917144]
[1750089222039,3.32071488,157.09,157.05,8.49917144]
[1750089222251,0.28432314,157.08,157.07,8.49917144]
[1750089222849,0.14216157,157.08,157.07,8.49917144]
[1750089223051,0.28432314,157.08,157.07,8.49917144]
[1750089223274,0.28432314,157.08,157.04,30.78640012]
[1750089223550,0.28432314,157.08,157.07,8.49917144]
[1750089223877,26.30432314,157.08,157.07,8.49917144]
[1750089224843,0.28432314,157.08,157.07,8.49917144]
[1750089225023,26.30432314,157.08,157.07,8.49917144]
[1750089226851,26.30432314,157.08,157.07,14.86575958]
[1750089227548,26.30432314,157.08,157.07,8.49917144]
[1750089228348,26.30432314,157.08,157.04,8.49917144]
[1750089228562,26.30432314,157.08,157.03,6.36820989]
[1750089228867,26.30432314,157.08,157.04,8.49917144]
[1750089230334,31.05826056,157.08,157.04,8.49917144]
[1750089230649,0.28432314,157.06,157.02,8.49917144]
[1750089230972,34.64133301,157.07,157.02,8.49917144]
[1750089230973,0.28432314,157.04,157.02,8.49917144]
[1750089231940,0.28432314,157.04,157.02,14.86762525]
[1750089233252,0.28432314,157.04,157.03,8.49917144]
[1750089236373,0.28432314,157.04,157.03,14.86738133]
[1750089236666,26.0,157.05,157.03,14.86738133]
[1750089236858,26.28432314,157.05,157.04,8.49917144]
[1750089237367,26.28432314,157.05,157.03,6.36820989]
[1750089237671,0.28432314,157.04,157.01,6.36902108]
[1750089237853,0.28432314,157.04,157.02,8.49917144]
[1750089239163,0.28432314,157.04,157.02,14.86776514]
[1750089239845,0.28432314,157.04,157.01,8.49917144]
[1750089240445,5.04748189,157.04,157.01,8.49917144]
[1750089240974,11.41538224,157.04,157.01,8.49917144]
[1750089241276,11.41538224,157.04,157.0,8.49917144]
[1750089243372,11.41538224,157.04,157.0,14.86856699]
[1750089243581,5.04748189,157.04,157.0,14.86856699]
[1750089243877,5.04748189,157.04,157.01,8.49917144]
[1750089244073,11.41530248,157.04,156.98,6.46414886]
[1750089244261,0.14216157,157.03,156.99,8.49917144]
[1750089244465,0.28432314,157.01,156.99,8.49917144]
[1750089244680,0.28432314,157.01,156.98,12.83423612]
[1750089244854,41.29548862,156.99,156.98,6.46414886]
[1750089245183,72.04079052,156.99,156.98,6.46414886]
[1750089245360,90.69043938,156.99,156.98,6.46414886]
[1750089245686,99.18487702,156.99,156.98,6.46414886]
[1750089246487,90.68570558,156.99,156.98,6.46414886]
[1750089246655,99.18487702,156.99,156.98,6.46414886]
[1750089247884,67.12859325,156.99,156.98,6.46414886]
[1750089249056,75.62776469,156.99,156.98,6.46414886]
[1750089249252,79.07950999,156.99,156.98,6.46414886]
[1750089249457,79.07950999,156.99,156.98,3.27720829]
[1750089250278,22.31909914,156.99,156.98,18.14661797]
[1750089250475,50.71550859,156.99,156.98,18.14661797]
[1750089250680,53.09886827,156.99,156.98,3.27720829]